[Event "13th Rheinland-Pfalz-Open 2023"]
[Site "Neuwied-Engers"]
[Date "2023.06.10"]
[Round "6.1"]
[White "Winterberg, Lukas"]
[Black "Peng, Li Min"]
[Result "0-1"]
[Annotator "TA"]
[ECO "D24"]
[WhiteElo "2405"]
[BlackElo "2530"]
[PlyCount "88"]
[EventDate "2023.01.12"]
[EventType "swiss"]
[EventCountry "GER"]
[SourceTitle "playchess.com"]
[Source "ChessBase"]
[SourceQuality "1"]
[TimeControl "40/5400+30:1800+30"]

{[%evp 9,88,0,42,38,35,43,38,39,54,5,16,13,28,7,27,25,29,-7,-5,-56,-15,-74,-77,-98,-93,-142,-129,-142,-126,-174,-172,-158,-175,-486,-469,-457,-395,-404,-388,-545,-437,-430,-414,-405,-445,-452,-424,-627,-616,-727,-683,-772,-772,-750,-739,-643,-363,-348,-291,-479,-394,-368,-332,-329,-322,-661,-661,-643,-629,-616,-603,-582,-567,-552,-520,-12844,-2209,-29982,-12828,-29994,-29994]} 1. d4 {[%emt 0:00:03]} Nf6 {[%emt 0:07:39]} 2. Nf3 {[%emt 0:00:14]} e6 {[%emt 0:00:17]} 3. c4 {[%emt 0:00:11]} d5 {[%emt 0:00:21]} 4. Nc3 {[%emt 0:00:14]} dxc4 {[%emt 0:00:31]} 5. e4 {[%emt 0:00:20][%cal Be2e4,Be4e5][%mdl 32]} b5 {[%emt 0:00:06]} 6. e5 {[%emt 0:00:12] D24: Queen's Gambit Accepted: 3 Nf3 Nf6 4 Nc3.} Nd5 {[%emt 0:00:04]} 7. Nxb5 {[%emt 0:00:15]} Nb6 {[%emt 0:00:04]} 8. Be2 {[%emt 0:00:28] White is slightly better.} Nc6 {[%emt 0:00:10][%cal Bb8c6,Bc6e7,Be7f5][%mdl 32]} 9. h4 {[%emt 0:00:26]} (9. O-O $14 {was preferrable.}) 9... Qd7 {[%emt 0:00:18] [#]} 10. Rh3 $146 {[%emt 0:01:36]} ({Predecessor:} 10. Nc3 Be7 11. Rh3 Ba6 12. Rg3 g6 13. Kf1 O-O-O 14. Be3 Nb4 15. Nd2 Bxh4 16. Rh3 {0-1 Gunina,V (2431)-Tsolakidou,S (2380) Capechecs Online Trophy-B rapid 2020 (12)}) 10... Bb4+ {[%emt 0:03:24]} 11. Kf1 {[%emt 0:00:25]} Ne7 {[%emt 0:02:03]} 12. Nc3 {[%emt 0:02:41]} Bb7 $1 {[%emt 0:00:09]} 13. Be3 {[%emt 0:04:39]} Nf5 {[%emt 0:01:27][%cal Oc7c5]} 14. Rc1 {[%emt 0:02:16]} (14. Qc2 $11) 14... O-O {[%emt 0:08:14]} 15. h5 {[%emt 0:02:21]} (15. a3 $11 {keeps the balance.} Be7 16. Qc2) 15... h6 {[%emt 0:00:47] Black has more active pieces. White is now going downhill.} 16. Qc2 {[%emt 0:04:34] [#]} c5 $1 {[%emt 0:01:04][%cal Rc5d4]} 17. dxc5 {[%emt 0:28:51]} ({White should try} 17. Rd1) 17... Nxe3+ $17 {[%emt 0:00:07][%mdl 64] Remove Defender} 18. fxe3 {[%emt 0:00:21]} Bxc5 {[%emt 0:00:03][%cal Bb4c5,Bc5e3,Be3g5][%mdl 32]} 19. Kf2 {[%emt 0:01:05]} (19. Nh2 $17 {was necessary.}) 19... Qc6 $19 {[%emt 0:04:27]} 20. Rg3 {[%emt 0:00:40]} Rad8 {[%emt 0:02:04][%cal Oc5e3] Against Nd4. Strongly threatening ...Bxe3+! Chess con chili.} 21. Rh1 $2 {[%emt 0:01:21] [#]} (21. Rd1) 21... Bxe3+ $1 {[%emt 0:06:03][%mdl 576] Decoy, Clearance} 22. Kf1 {[%emt 0:00:54]} f5 {[%emt 0:05:48]} 23. exf6 {[%emt 0:03:27]} Rxf6 {[%emt 0:00:11]} 24. Rh4 {[%emt 0:03:15]} (24. Rg6 $142 Rd2 25. Qb1) 24... Bg5 {[%emt 0:00:55] A strong pair of Bishops.} 25. Rhg4 {[%emt 0:02:18]} Qc5 {[%emt 0:00:04]} ({Don't blunder} 25... Rd2 $2 26. Qc1 Qd6 27. Rxg5 hxg5 28. Rxg5 $19) 26. Ke1 {[%emt 0:03:00]} Kh8 {[%emt 0:06:16]} 27. Ne4 {[%emt 0:03:32]} Bxe4 {[%emt 0:00:04]} 28. Qxe4 {[%emt 0:00:22]} (28. Rxe4 $142 Nd5 29. Qxc4) 28... Nd5 {[%emt 0:00:48] ...Be3 is the strong threat.} 29. Bxc4 {[%emt 0:09:06]} Ne3 {[%emt 0:00:29]} 30. Bd3 {[%emt 0:05:10][%csl Gd3][%cal Re4h7]} Qc1+ {[%emt 0:00:20]} (30... Nxg4 $2 31. Qh7#) 31. Kf2 {[%emt 0:00:47]} Qd2+ {[%emt 0:00:12]} 32. Be2 {[%emt 0:01:15]} Nxg4+ {[%emt 0:00:04]} 33. Rxg4 {[%emt 0:00:20]} Qxb2 {[%emt 0:00:50]} 34. Kg1 $2 {[%emt 0:02:10] [#]} (34. Kg3 {only move.}) 34... Rf4 $1 {[%emt 0:01:35][%mdl 576] Decoy} 35. Rxf4 {[%emt 0:03:03]} Qc1+ {[%emt 0:00:05]} 36. Kf2 {[%emt 0:00:19]} Qxf4 {[%emt 0:00:21]} (36... Bxf4 $2 {loses.} 37. Bd3 g6 38. Qxe6 Qb2+ 39. Be2) 37. Qxe6 {[%emt 0:00:38]} (37. Qxf4 Bxf4 38. Bc4) 37... Bh4+ {[%emt 0:00:03]} 38. Kg1 {[%emt 0:00:38]} Bg3 {[%emt 0:00:15]} 39. Qe7 {[%emt 0:00:49]} Qb8 {[%emt 0:03:12] ( -> ...Re8)} 40. Qe4 {[%emt 0:03:33]} Re8 {[%emt 0:00:45]} 41. Qd3 {[%emt 0:31:39]} Qb2 {[%emt 0:30:12]} 42. Nd4 {[%emt 0:00:34]} (42. Bf1 $142) 42... Bc7 {[%emt 0:02:04]} (42... Rxe2 $142 43. Qxg3 Qxd4+ 44. Kh2 Re5 45. Qxe5 Qxe5+ 46. Kg1 Qxh5 47. Kf2 Qf7+ 48. Ke2 Qxa2+ 49. Kf3 Qc4 50. g4 a5 51. Kf2 Qxg4 52. Kf1 a4 53. Kf2 a3 54. Ke3 a2 55. Kd2 a1=Q 56. Kd3 Qgd4+ 57. Ke2 Qad1#) 43. Kh1 {[%emt 0:01:50]} Rd8 {[%emt 0:00:17]} (43... Qa1+ $142 44. Bf1 Re1 45. g4 Rxf1+ 46. Kg2 Rg1+ 47. Kf3 Rg3+ 48. Ke4 Rxd3 49. Kxd3 Qb1+ 50. Nc2 Qd1+ 51. Kc3 Be5+ {[%mdl 64] Deflection} 52. Kc4 Qxc2+ 53. Kd5 Bc7 54. g5 Qd3+ 55. Kc5 Be5 56. gxh6 a6 57. Kb6 Qb5+ 58. Ka7 Bc7 59. hxg7+ Kg8 60. h6 Qb8+ 61. Kxa6 Qb6#) 44. Qc4 {[%emt 0:01:07]} Qa1+ {[%emt 0:00:05] Beautiful play by Peng!   Weighted Error Value: White=0.93/Black=0.39} 0-1

[Event "13th Rheinland-Pfalz-Open 2023"]
[Site "Neuwied-Engers"]
[Date "2023.06.10"]
[Round "6.2"]
[White "Stillger, Bernhard"]
[Black "du Maire, Jerome"]
[Result "1-0"]
[Annotator "TA"]
[ECO "D55"]
[WhiteElo "2289"]
[BlackElo "2129"]
[PlyCount "106"]
[EventDate "2023.01.12"]
[EventType "swiss"]
[EventCountry "GER"]
[SourceTitle "playchess.com"]
[Source "ChessBase"]
[SourceQuality "1"]
[TimeControl "40/5400+30:1800+30"]

{[%evp 28,106,27,28,29,19,26,12,22,14,14,19,14,14,23,6,11,12,50,30,82,82,82,82,82,86,88,90,123,82,82,82,94,66,58,51,71,73,129,133,112,83,137,93,198,166,203,203,201,199,108,71,662,608,1107,1107,868,764,7802,5510,29962,29963,29974,29975,29974,29975,29979,29980,29979,29980,29979,29979,29979,29979,29979,29980,29980,29979,29985,29986,29988]} 1. d4 {[%emt 0:00:03]} Nf6 {[%emt 0:00:31]} 2. c4 {[%emt 0:00:40]} e6 {[%emt 0:00:08]} 3. Nf3 {[%emt 0:00:05]} d5 {[%emt 0:00:08]} 4. Nc3 {[%emt 0:00:40]} Be7 {[%emt 0:00:32]} 5. Bg5 {[%emt 0:05:39]} h6 {[%emt 0:00:54]} 6. Bxf6 {[%emt 0:00:41]} Bxf6 {[%emt 0:00:27]} 7. e3 {[%emt 0:00:02]} c6 {[%emt 0:00:47]} 8. Rc1 {[%emt 0:00:26]} Nd7 {[%emt 0:00:37]} 9. Bd3 {[%emt 0:00:55]} O-O {[%emt 0:00:15]} 10. O-O {[%emt 0:00:44]} dxc4 {[%emt 0:00:23]} 11. Bxc4 {[%emt 0:00:06]} e5 {[%emt 0:00:15]} 12. Ne4 {[%emt 0:07:58]} exd4 {[%emt 0:02:02]} 13. Nxf6+ {[%emt 0:00:43]} Nxf6 {[%emt 0:00:15]} 14. Qxd4 {[%emt 0:00:25]} Qxd4 {[%emt 0:00:52] is the legacy move (14...Bg4).} 15. Nxd4 {[%emt 0:00:13]} ({Don't play} 15. exd4 Re8 $11) 15... Bd7 {[%emt 0:04:55] D55: Queen's Gambit Declined: 4 Bg5 Be7: Lines without ...h6 and 6...h6 7 Bxf6.} 16. f3 {[%emt 0:07:04]} Rfd8 {[%emt 0:16:06]} 17. Rfd1 {[%emt 0:06:55] [#]} c5 $146 {[%emt 0:05:44] The position is equal.} ({Predecessor:} 17... Kf8 18. Kf2 Ke7 19. e4 Ne8 20. Ke3 Nc7 21. Rd2 g6 22. Rcd1 f6 23. h4 c5 {1-0 Abramovic,B (2509)-Vujosevic,V (2369) YUG Cup1 Yugoslavia 2002 (5)}) 18. Nb5 {[%emt 0:03:56]} Bxb5 {[%emt 0:02:51]} 19. Bxb5 {[%emt 0:01:14]} b6 {[%emt 0:00:28]} 20. Kf2 {[%emt 0:05:45]} Kf8 {[%emt 0:01:05]} 21. e4 {[%emt 0:02:34][%cal Be3e4,Be4e5][%mdl 32]} Ke7 {[%emt 0:01:04]} 22. Ke3 {[%emt 0:04:11]} g5 {[%emt 0:06:19]} 23. g3 {[%emt 0:02:51]} Rxd1 {[%emt 0:29:38]} (23... Ne8 $11 {remains equal.}) 24. Rxd1 $16 {[%emt 0:00:08]} Rd8 {[%emt 0:00:30] Against e5} 25. Rxd8 {[%emt 0:06:35]} Kxd8 {[%emt 0:00:12][%mdl 4096] Endgame KB-KN} 26. e5 {[%emt 0:02:46]} Nd5+ {[%emt 0:00:42]} 27. Ke4 {[%emt 0:00:15]} Nc7 {[%emt 0:00:09]} 28. Bc4 {[%emt 0:05:26]} Ke7 {[%emt 0:01:58]} 29. f4 {[%emt 0:02:06]} gxf4 {[%emt 0:02:54]} 30. Kxf4 {[%emt 0:00:55]} b5 {[%emt 0:04:24]} 31. Be2 {[%emt 0:02:35]} Ke6 {[%emt 0:04:17]} 32. Ke4 {[%emt 0:05:22]} f5+ {[%emt 0:02:07]} ({Black should play} 32... Kd7) 33. exf6 {[%emt 0:01:07]} Kxf6 {[%emt 0:00:45]} 34. h4 {[%emt 0:02:53]} a5 {[%emt 0:03:09]} (34... c4 $142) 35. g4 {[%emt 0:14:04]} a4 {[%emt 0:02:49]} (35... Ke6 $16) 36. Bf1 $18 {[%emt 0:00:35]} c4 {[%emt 0:05:42]} 37. Kd4 {[%emt 0:03:25] Threatens to win with a3.} Ne6+ {[%emt 0:00:18] [#]} 38. Kc3 $1 {[%emt 0:00:34] Strongly threatening Kb4.} Ke5 {[%emt 0:00:51]} 39. Kb4 {[%emt 0:00:12]} Kd4 $2 {[%emt 0:01:39][%mdl 8192] This costs Black the game.} (39... Nd4 $16) 40. a3 $1 {[%emt 0:01:29]} (40. Kxb5 $2 {loses.} a3 41. Bxc4 Nc7+ 42. Kc6 axb2 $19) 40... Nc7 {[%emt 0:00:57]} 41. g5 {[%emt 0:31:22]} hxg5 {[%emt 0:00:58]} 42. hxg5 {[%emt 0:00:00][%cal Bh4g5,Bg5g6,Bg6g7][%mdl 32] [#] aiming for g6.} Nd5+ {[%emt 0:23:40]} 43. Kxb5 {[%emt 0:00:00]} c3 {[%emt 0:00:08]} 44. bxc3+ {[%emt 0:00:00] White mates.} (44. Kxa4 {gets mated.} cxb2) 44... Nxc3+ {[%emt 0:00:09]} 45. Kb4 {[%emt 0:00:00]} Nd5+ {[%emt 0:04:07]} 46. Kxa4 {[%emt 0:00:00]} Nc7 {[%emt 0:01:36]} 47. g6 {[%emt 0:00:00]} Ne8 {[%emt 0:00:51]} 48. Kb4 {[%emt 0:00:00]} Kd5 {[%emt 0:01:06]} 49. Kb5 {[%emt 0:00:00]} Nd6+ {[%emt 0:00:44]} 50. Kb6 {[%emt 0:00:00]} Nc8+ {[%emt 0:01:15]} 51. Kc7 {[%emt 0:00:00]} Ne7 {[%emt 0:00:43]} 52. g7 {[%emt 0:00:00]} Ke5 {[%emt 0:00:37]} 53. Bc4 {[%emt 0:00:00]} Ke4 {[%emt 0:01:27] Weighted Error Value: White=0.07 (flawless) /Black=0.49} 1-0

[Event "13th Rheinland-Pfalz-Open 2023"]
[Site "Neuwied-Engers"]
[Date "2023.06.10"]
[Round "6.3"]
[White "Polster, Christian"]
[Black "Kotyk, Michael"]
[Result "1/2-1/2"]
[Annotator "TA"]
[ECO "C47"]
[WhiteElo "2250"]
[BlackElo "2089"]
[PlyCount "73"]
[EventDate "2023.01.12"]
[EventType "swiss"]
[EventCountry "GER"]
[SourceTitle "playchess.com"]
[Source "ChessBase"]
[SourceQuality "1"]
[TimeControl "40/5400+30:1800+30"]

{[%evp 14,73,1,-1,4,0,9,0,0,0,0,0,-7,0,3,0,6,18,21,0,0,-18,0,-10,0,0,0,0,0,0,-1,-8,0,-26,0,0,0,0,0,0,5,6,1,-2,8,8,17,0,0,0,0,0,0,0,0,0,0,0,0,0,0,0]} 1. e4 {[%emt 0:00:02]} e5 {[%emt 0:00:04]} 2. Nf3 {[%emt 0:00:34]} Nc6 {[%emt 0:00:04]} 3. d4 {[%emt 0:00:25]} exd4 {[%emt 0:00:04]} 4. Nxd4 {[%emt 0:00:05]} Nf6 {[%emt 0:00:04]} 5. Nc3 {[%emt 0:00:19]} Bb4 {[%emt 0:00:04]} 6. Nxc6 {[%emt 0:00:10]} bxc6 {[%emt 0:00:03]} 7. Bd3 {[%emt 0:00:10]} d5 {[%emt 0:00:03]} 8. exd5 {[%emt 0:00:09]} O-O {[%emt 0:00:04] C47: Scotch Four Knights and Four Knights with 4 g3.} ({Much less strong is} 8... Qxd5 9. O-O Bxc3 10. bxc3 $16) 9. O-O {[%emt 0:00:13]} Bg4 {[%emt 0:00:02]} 10. Be2 {[%emt 0:15:07]} Bxe2 {[%emt 0:00:05]} 11. Nxe2 {[%emt 0:00:18]} cxd5 {[%emt 0:00:03]} 12. Qd3 {[%emt 0:03:45]} Bd6 {[%emt 0:02:34]} 13. Bf4 {[%emt 0:04:08]} (13. Bg5 {seems wilder.} Re8 14. Nd4 Bxh2+ 15. Kxh2 Ng4+ 16. Kg3) 13... Rb8 {[%emt 0:04:11]} 14. b3 {[%emt 0:06:55] [#]} Bxf4 $146 {[%emt 0:03:43]} ({Predecessor:} 14... c6 15. c4 Bxf4 16. Nxf4 Qc7 17. g3 Rfd8 18. Rac1 d4 19. c5 Nd5 20. Nxd5 Rxd5 {0-1 Tiarks,J (2180)-Agasarov,B (2249) Titled Tuesday intern op 29th Mar Early blitz 2022 (10)}) 15. Nxf4 {[%emt 0:01:12]} Qd6 {[%emt 0:00:02]} 16. Ne2 {[%emt 0:03:52]} Rfe8 {[%emt 0:07:01]} 17. Ng3 {[%emt 0:02:38]} Re5 {[%emt 0:05:48]} 18. Rae1 {[%emt 0:06:42] Strongly threatening Nf5.} Rbe8 {[%emt 0:01:16]} 19. Rxe5 {[%emt 0:02:13]} Rxe5 {[%emt 0:00:17]} 20. Rd1 {[%emt 0:02:33]} g6 {[%emt 0:02:45]} 21. Nf1 {[%emt 0:07:39]} Qa3 {[%emt 0:05:45]} 22. Qc3 {[%emt 0:02:23] Inhibits c5.} Qe7 {[%emt 0:01:14]} 23. b4 {[%emt 0:16:47]} Re4 {[%emt 0:03:27]} 24. a3 {[%emt 0:05:13] The position is equal.} Rc4 {[%emt 0:10:38]} 25. Qe3 {[%emt 0:01:41]} Qe4 {[%emt 0:00:39]} 26. Qxe4 {[%emt 0:04:00]} Rxe4 $11 {[%emt 0:01:09][%mdl 4096] Endgame KRN-KRN} 27. f3 {[%emt 0:03:16]} Re2 {[%emt 0:02:14]} 28. Rd2 {[%emt 0:00:23]} Re6 {[%emt 0:02:23]} 29. Kf2 {[%emt 0:00:42]} a5 {[%emt 0:00:26]} 30. c3 {[%emt 0:03:42]} Rc6 {[%emt 0:03:31]} 31. Rd3 {[%emt 0:00:24]} d4 {[%emt 0:03:31][%mdl 64] [#] Against Ne3. Deflection} 32. cxd4 {[%emt 0:06:22]} axb4 {[%emt 0:00:05]} 33. axb4 {[%emt 0:00:15]} Rb6 {[%emt 0:00:28]} 34. Rb3 {[%emt 0:01:19]} Nd5 {[%emt 0:00:01]} 35. b5 {[%emt 0:01:13]} c6 {[%emt 0:00:01]} 36. Ne3 {[%emt 0:00:34] [#] Hoping for Nxd5.} Nc7 {[%emt 0:00:57]} 37. Rc3 {[%emt 0:00:56] An interesting draw.   Weighted Error Value: White=0.04 (flawless) /Black=0.03 (flawless)} 1/2-1/2

[Event "13th Rheinland-Pfalz-Open 2023"]
[Site "Neuwied-Engers"]
[Date "2023.06.10"]
[Round "6.5"]
[White "Kettler, Ilija Jonas"]
[Black "Baerwinkel, Tobias"]
[Result "0-1"]
[Annotator "TA"]
[ECO "B51"]
[WhiteElo "2106"]
[BlackElo "2324"]
[PlyCount "82"]
[EventDate "2023.01.12"]
[EventType "swiss"]
[EventCountry "GER"]
[SourceTitle "playchess.com"]
[Source "ChessBase"]
[SourceQuality "1"]
[TimeControl "40/5400+30:1800+30"]

{[%evp 9,82,10,4,19,13,10,3,5,12,0,41,-13,0,-3,-12,-9,11,20,10,9,0,-46,-19,-41,-31,-31,-33,-33,-33,-33,-26,-45,-29,-45,-33,-45,9,14,144,158,132,133,137,24,7,8,8,7,6,0,14,0,0,0,0,0,17,-170,0,0,0,-9,12,12,12,12,31,-317,-295,-298,-11,0,-8,-943,-1057]} 1. e4 {[%emt 0:02:27]} c5 {[%emt 0:00:07]} 2. Nf3 {[%emt 0:00:26]} d6 {[%emt 0:00:08]} 3. Bb5+ {[%emt 0:00:14]} Nd7 {[%emt 0:01:23]} 4. c4 {[%emt 0:01:59]} Ngf6 {[%emt 0:01:51]} 5. Nc3 {[%emt 0:00:28]} g6 {[%emt 0:01:16]} 6. d3 {[%emt 0:00:16] B51: Sicilian: Moscow Variation (3 Bb5+) without 3...Bd7.} Bg7 {[%emt 0:00:53]} 7. h3 {[%emt 0:00:07]} O-O {[%emt 0:03:03]} 8. Ba4 {[%emt 0:00:34] The position is equal.} b6 {[%emt 0:03:08]} 9. Be3 {[%emt 0:02:21]} Ne5 {[%emt 0:00:53] [#]} 10. Nh2 $146 {[%emt 0:03:56]} (10. Nxe5 $14 dxe5 11. O-O) ({Predecessor:} 10. Nxe5 dxe5 11. a3 Bb7 12. b4 cxb4 13. axb4 Nh5 14. O-O Nf4 15. Nd5 Nxd5 16. exd5 {1-0 Yuan,Q (2373)-Chernobay,A (2484) Titled Tuesday intern op 05th Apr Late blitz 2022 (6)}) 10... Bd7 {[%emt 0:02:22]} 11. Bxd7 {[%emt 0:04:10]} Qxd7 {[%emt 0:01:52]} 12. O-O {[%emt 0:01:31]} a6 {[%emt 0:03:35]} 13. f4 {[%emt 0:05:04]} Nc6 {[%emt 0:00:07]} 14. Nf3 {[%emt 0:00:06]} Rab8 {[%emt 0:01:58]} 15. d4 {[%emt 0:06:51]} (15. Rc1 $11 {deserves consideration.}) 15... cxd4 {[%emt 0:01:27]} 16. Nxd4 {[%emt 0:00:08]} Rfc8 {[%emt 0:04:46]} 17. Qd3 {[%emt 0:07:06] [#]} b5 $1 {[%emt 0:07:59]} 18. cxb5 {[%emt 0:02:18]} axb5 {[%emt 0:06:40]} 19. a3 {[%emt 0:13:37]} ({But not} 19. Ndxb5 Nb4 20. Qe2 Nxe4 $17) 19... b4 {[%emt 0:14:43]} 20. Nxc6 {[%emt 0:02:35]} Qxc6 {[%emt 0:02:38]} 21. axb4 {[%emt 0:00:21]} Rxb4 {[%emt 0:01:02]} 22. Ra6 {[%emt 0:00:44]} Qd7 {[%emt 0:10:08]} (22... Qe8 $15) 23. e5 $11 {[%emt 0:05:33]} Ne8 {[%emt 0:04:32]} (23... dxe5 $11 24. Qxd7 Nxd7) 24. Nd5 $1 $16 {[%emt 0:00:11]} Rxb2 {[%emt 0:01:43]} 25. Ra7 {[%emt 0:00:40][%mdl 64] Skewer} Rb7 {[%emt 0:05:12]} 26. Nb6 {[%emt 0:00:09]} (26. Rxb7 $1 $16 Qxb7 27. Rb1) 26... Rxa7 $11 {[%emt 0:00:17]} 27. Nxd7 {[%emt 0:00:16]} Rxd7 {[%emt 0:00:03]} 28. Rd1 {[%emt 0:06:44]} Rdc7 {[%emt 0:00:34]} 29. Qb5 {[%emt 0:03:05]} h5 {[%emt 0:04:16]} 30. Bd4 {[%emt 0:02:12][%mdl 1024] White has compensation.} e6 {[%emt 0:03:16]} 31. Bb6 {[%emt 0:02:26]} Rc6 {[%emt 0:00:35]} 32. Bd4 {[%emt 0:06:41]} d5 {[%emt 0:05:47]} 33. Ra1 $2 {[%emt 0:01:00] [#]} (33. g4 $11 {and White stays safe.}) 33... Rc4 $2 {[%emt 0:01:25]} (33... Nd6 $1 $19 {[%cal Rd6b5]} 34. Qa4 Nf5) 34. Be3 {[%emt 0:01:25]} Bh6 {[%emt 0:01:22]} 35. g3 {[%emt 0:00:43]} h4 {[%emt 0:00:50][%cal Bh5h4,Bh4g3][%mdl 32]} 36. Ra7 $36 {[%emt 0:01:32][%mdl 2048] aiming for Qd7. Black is under pressure.} Ng7 $1 {[%emt 0:00:49] And now ...Nf5 would win.} 37. Qb7 {[%emt 0:02:24]} ({Stronger than} 37. gxh4 Nf5 38. Qb7 Rf8 $17) 37... Rf8 {[%emt 0:01:02]} 38. Bd2 $2 {[%emt 0:00:08][%mdl 8192]} (38. gxh4 Nf5 39. Bd2 Rc2 $19) (38. g4 $1 $14 {was forced to keep a grip.}) 38... hxg3 $19 {[%emt 0:01:50]} 39. Bb4 {[%emt 0:00:06] [#]} Rxb4 {[%emt 0:01:12]} 40. Qxb4 $11 {[%emt 0:00:02]} Nh5 {[%emt 0:01:02] Chess con chili.} 41. f5 {[%emt 0:30:10][%mdl 8192]} Be3+ {[%emt 0:30:12] Black used his chance.   Weighted Error Value: White=0.40/Black=0.27 (precise)} ({And not} 41... exf5 42. Kg2 $11) 0-1

[Event "13th Rheinland-Pfalz-Open 2023"]
[Site "Neuwied-Engers"]
[Date "2023.06.10"]
[Round "6.6"]
[White "Chassard, Cedric"]
[Black "Weber, Samuel"]
[Result "1/2-1/2"]
[Annotator "TA"]
[ECO "C72"]
[WhiteElo "2094"]
[BlackElo "2296"]
[PlyCount "81"]
[EventDate "2023.01.12"]
[EventType "swiss"]
[EventCountry "GER"]
[SourceTitle "playchess.com"]
[Source "ChessBase"]
[SourceQuality "1"]
[TimeControl "40/5400+30:1800+30"]

{[%evp 12,81,44,33,114,120,149,153,153,102,104,107,112,112,135,43,83,66,51,53,36,43,91,96,73,76,100,97,102,60,131,130,117,124,215,209,186,85,81,85,77,93,89,87,98,97,100,96,97,94,85,87,96,97,97,103,90,16,23,22,55,0,0,0,0,0,0,0,0,-8,45,-8]} 1. e4 {[%emt 0:00:06]} e5 {[%emt 0:06:41]} 2. Nf3 {[%emt 0:00:13]} Nc6 {[%emt 0:00:05]} 3. Bb5 {[%emt 0:00:05]} a6 {[%emt 0:00:06]} 4. Ba4 {[%emt 0:00:03]} d6 {[%emt 0:00:11]} 5. d4 {[%emt 0:02:19]} exd4 {[%emt 0:04:39]} 6. Nxd4 {[%emt 0:00:18]} Bd7 {[%emt 0:00:05]} 7. O-O {[%emt 0:01:32]} g6 {[%emt 0:03:36] C72: Ruy Lopez: Deferred Steinitz: 5 0-0.} (7... b5 $14 8. Nxc6 Bxc6) 8. Nxc6 $16 {[%emt 0:09:07]} bxc6 {[%emt 0:01:04]} 9. Qd4 $1 {[%emt 0:01:42] [#] Prevents Bg7.} Qf6 $146 {[%emt 0:01:11] White is clearly better.} ({Predecessor:} 9... f6 10. Qc4 d5 11. exd5 cxd5 12. Re1+ Ne7 13. Qd4 Bxa4 14. Qxa4+ Qd7 15. Qd4 Kf7 {1-0 Svane,F (2470)-Alavi Moghaddam,S (2455) Titled Tuesday intern op 02nd Nov blitz 2021 (8)}) 10. Qc4 {[%emt 0:03:29]} ({White should try} 10. Qb4 $1) 10... Ne7 {[%emt 0:03:12]} 11. Bd2 $1 {[%emt 0:01:41] aiming for Bc3.} Qe6 {[%emt 0:02:17]} 12. Qc3 {[%emt 0:12:08]} Rg8 {[%emt 0:02:29]} 13. Bb3 {[%emt 0:01:08]} (13. Qb4 $16) 13... Qxe4 $14 {[%emt 0:04:38]} 14. Re1 {[%emt 0:00:44]} Qf5 {[%emt 0:00:09]} 15. Qe3 {[%emt 0:06:52][%mdl 1024] White has compensation.} (15. Qb4 {is interesting.} Bg7 16. Bc3 a5 17. Qb7) 15... Be6 {[%emt 0:11:46]} 16. Nc3 {[%emt 0:07:49]} ({Don't play} 16. Bxe6 fxe6 17. Qxe6 Qxe6 18. Rxe6 Kd7 $11) 16... Kd8 {[%emt 0:10:31]} (16... Bg7 $14) 17. Ne4 $36 {[%emt 0:11:54][%mdl 2048] White is in control.} ({Reject} 17. Bxe6 fxe6 18. Qxe6 Qxe6 19. Rxe6 Kd7 $11) 17... Nd5 {[%emt 0:04:14]} 18. Qg3 {[%emt 0:04:52]} Be7 {[%emt 0:07:06]} 19. c4 {[%emt 0:03:51][%cal Bc2c4,Bc4c5][%mdl 32]} Nf6 {[%emt 0:00:35]} 20. Ng5 {[%emt 0:01:55]} Nh5 {[%emt 0:01:37]} ({Black should play} 20... Nd7 $14) 21. Nxe6+ $1 $16 {[%emt 0:00:19]} fxe6 {[%emt 0:00:33]} 22. Qe3 {[%emt 0:00:46][%cal Ob3c2]} e5 {[%emt 0:06:48] [#]} (22... Rf8 $16 {was worth a try.}) 23. c5 $1 {[%emt 0:01:32][%mdl 512]} d5 {[%emt 0:00:46]} (23... Rf8 24. cxd6) 24. Qxe5 {[%emt 0:00:47]} (24. Ba4 $1 $18 {[%cal Ra4c6]}) 24... Qxe5 {[%emt 0:00:16]} 25. Rxe5 {[%emt 0:00:02] Ba4 is the strong threat.} Bf6 {[%emt 0:00:54] [#]} 26. Re6 {[%emt 0:05:27] White is much more active. The black rooks are badly placed.} Kd7 {[%emt 0:02:34]} 27. Rae1 {[%emt 0:00:52] Strongly threatening Bd1.} Rae8 {[%emt 0:00:38]} 28. Rxe8 {[%emt 0:16:08]} Rxe8 {[%emt 0:00:17]} 29. Rxe8 {[%emt 0:00:02]} Kxe8 {[%emt 0:00:02][%mdl 4096] Endgame KBB-KBN} 30. Ba4 {[%emt 0:00:08]} Kd7 {[%emt 0:00:56]} 31. b4 {[%emt 0:00:35]} Bd4 {[%emt 0:05:54] [#]} 32. Kf1 $1 {[%emt 0:00:55]} Ng7 {[%emt 0:02:11][%cal Oa6a5]} 33. Ke2 {[%emt 0:00:53]} Ne6 {[%emt 0:00:15][%cal Oa6a5]} 34. Bc2 {[%emt 0:02:22]} (34. f4 $16) 34... a5 $1 $11 {[%emt 0:01:36]} 35. a3 {[%emt 0:01:13]} Bb2 {[%emt 0:08:16]} 36. a4 {[%emt 0:01:08]} (36. bxa5 $14 Bxa3 37. Be3) 36... axb4 {[%emt 0:00:55]} 37. Bxb4 {[%emt 0:00:10]} Bd4 {[%emt 0:00:08]} 38. h4 {[%emt 0:00:49]} Nxc5 {[%emt 0:07:52]} 39. Bxc5 {[%emt 0:03:27]} Bxc5 {[%emt 0:00:01]} 40. f4 {[%emt 0:00:30]} Ke6 {[%emt 0:02:43]} (40... Be7 $11) 41. g4 {[%emt 0:03:20] White really could win this.   Weighted Error Value: White=0.15 (very precise) /Black=0.18 (very precise) .  Loses game:     	---       	---        Missed win:     	---       	---        Mistake:       	White=6     	Black=4      Inaccurate:     	White=1     	Black=1      OK:         	White=12    	Black=12     Best:        	White=2     	Black=3      Strong:       	White=4     	Black=1      Brilliant:      	---       	---} (41. a5 $14) 1/2-1/2